fUST/lending_fUST_20250928
["ID","MTS","AMOUNT","RATE_DAILY","PERIOD"]
[388156405,1759021843287,-929.7,0.00035616,9]
[388156406,1759021843296,-841.42,0.00035616,9]
[388156407,1759021843305,-480.0,0.00035616,9]
[388156408,1759021843315,-480.0,0.00035616,9]
[388156409,1759021843324,-847.13,0.00035616,9]
[388156410,1759021843333,-480.0,0.00035616,9]
[388156411,1759021843343,-1139.0,0.00035616,9]
[388156412,1759021843352,-480.0,0.00035616,9]
[388156413,1759021843361,-865.38,0.00035616,9]
[388156414,1759021843370,-480.0,0.00035616,9]
[388156415,1759021843379,-480.0,0.00035616,9]
[388156416,1759021843388,-644.68,0.00035616,9]
[388156417,1759021843397,-480.0,0.00035616,9]
[388156418,1759021843407,-480.0,0.00035616,9]
[388156419,1759021843416,-437.0265189,0.00035616,9]
[388156420,1759021843425,-515.52,0.00035616,9]
[388156421,1759021843434,-3612.7,0.00035616,9]
[388156422,1759021843444,-480.0,0.00035616,9]
[388156423,1759021843452,-520.0,0.00035616,3]
[388156424,1759021843461,-480.0,0.00035616,9]
[388156425,1759021843471,-1554.39,0.00035616,9]
[388156426,1759021843480,-1241.07,0.00035616,9]
[388156427,1759021843494,-480.0,0.00035616,9]
[388156428,1759021843503,-480.0,0.00035616,9]
[388156429,1759021843513,-481.02514786,0.00035616,9]
[388156430,1759021843522,-544.16,0.00035616,9]
[388156431,1759021843532,-480.0,0.00035616,9]
[388156432,1759021843541,-480.0,0.00035616,9]
[388156433,1759021843551,-500.0,0.00035616,9]
[388156434,1759021843560,-3049.69,0.00035616,9]
[388156435,1759021843570,-480.0,0.00035616,9]
[388156436,1759021843580,-480.0,0.00035616,9]
[388156437,1759021843589,-1101.71,0.00035616,9]
[388156438,1759021843598,-480.0,0.00035616,9]
[388156439,1759021843607,-480.0,0.00035616,9]
[388156440,1759021843617,-822.61,0.00035616,9]
[388156441,1759021843626,-480.0,0.00035616,9]
[388156442,1759021843636,-1015.31,0.00035616,9]
[388156443,1759021843646,-571.37,0.00035616,9]
[388156444,1759021843655,-480.0,0.00035616,9]
[388156445,1759021843665,-1093.45,0.00035616,9]
[388156446,1759021843675,-480.0,0.00035616,9]
[388156447,1759021843684,-480.0,0.00035616,9]
[388156448,1759021843694,-816.01,0.00035616,9]
[388156449,1759021843703,-869.95,0.00035616,9]
[388156450,1759021843713,-480.8236545,0.00035616,9]
[388156451,1759021843722,-500.0,0.00035616,9]
[388156452,1759021843731,-1132.52,0.00035616,9]
[388156453,1759021843740,-500.0,0.00035616,9]
[388156454,1759021843750,-500.0,0.00035616,9]
[388156455,1759021843759,-500.0,0.00035616,9]
[388156456,1759021843768,-500.0,0.00035616,9]
[388156457,1759021843777,-500.0,0.00035616,9]
[388156458,1759021843786,-500.0,0.00035616,9]
[388156459,1759021843796,-500.0,0.00035616,9]
[388156460,1759021843806,-308.46521942,0.00035616,9]
[388156461,1759021843815,-480.0,0.00035616,9]
[388156462,1759021843825,-480.0,0.00035616,9]
[388156463,1759021843835,-480.0,0.00035616,9]
[388156464,1759021843844,-480.0,0.00035616,9]
[388156465,1759021843853,-480.0,0.00035616,9]
[388156466,1759021843863,-1000.0,0.00035616,9]
[388156467,1759021843873,-787.47,0.00035616,9]
[388156468,1759021843882,-3842.75,0.00035616,9]
[388156469,1759021843891,-480.0,0.00035616,9]
[388156470,1759021843900,-480.0,0.00035616,9]
[388156471,1759021843910,-971.63,0.00035616,9]
[388156473,1759021843920,-480.0,0.00035616,9]
[388156475,1759021843929,-879.88,0.00035616,9]
[388156476,1759021843938,-908.07,0.00035616,9]
[388156477,1759021843947,-480.0,0.00035616,9]
[388156478,1759021843957,-895.43,0.00035616,9]
[388156479,1759021843966,-754.2,0.00035616,9]
[388156480,1759021843975,-595.15,0.00035616,9]
[388156481,1759021843984,-906.04,0.00035616,9]
[388156482,1759021843993,-480.0,0.00035616,9]
[388156483,1759021844002,-1810.05,0.00035616,9]
[388156484,1759021844012,-446.83778192,0.00035616,9]
[388156485,1759021844021,-1109.0,0.00035616,9]
[388156486,1759021844030,-480.0,0.00035616,9]
[388156487,1759021844040,-545.5,0.00035616,9]
[388156488,1759021844049,-480.0,0.00035616,9]
[388156489,1759021844058,-648.61,0.00035616,9]
[388156490,1759021844067,-648.61,0.00035616,9]
[388156491,1759021844076,-480.0,0.00035616,9]
[388156492,1759021844085,-648.61,0.00035616,9]
[388156493,1759021844094,-648.61,0.00035616,9]
[388156494,1759021844103,-648.61,0.00035616,9]
[388156495,1759021844111,-648.61,0.00035616,9]
[388156496,1759021844120,-480.0,0.00035616,9]
[388156497,1759021844129,-648.61,0.00035616,9]
[388156498,1759021844138,-648.61,0.00035616,9]
[388156499,1759021844147,-648.61,0.00035616,9]
[388156500,1759021844156,-648.61,0.00035616,9]
[388156501,1759021844164,-648.61,0.00035616,9]
[388156502,1759021844173,-648.61,0.00035616,9]
[388156503,1759021844182,-884.06,0.00035616,9]
[388156504,1759021844191,-648.61,0.00035616,9]
[388156505,1759021844200,-648.61,0.00035616,9]
[388156506,1759021844208,-648.61,0.00035616,9]
[388156507,1759021844217,-648.61,0.00035616,9]
[388156508,1759021844227,-648.61,0.00035616,9]
[388156509,1759021844235,-648.61,0.00035616,9]
[388156510,1759021844244,-648.61,0.00035616,9]
[388156511,1759021844253,-648.61,0.00035616,9]
[388156512,1759021844262,-648.61,0.00035616,9]
[388156513,1759021844271,-648.61,0.00035616,9]
[388156514,1759021844280,-648.61,0.00035616,9]
[388156515,1759021844289,-648.74201018,0.00035616,9]
[388156516,1759021844298,-761.81,0.00035616,9]
[388156517,1759021844307,-480.0,0.00035616,9]
[388156518,1759021844316,-480.0,0.00035616,9]
[388156519,1759021844326,-480.0,0.00035616,9]
[388156520,1759021844335,-1605.71,0.00035616,9]
[388156521,1759021844344,-1236.95,0.00035616,9]
[388156522,1759021844353,-1409.68,0.00035616,9]
[388156523,1759021844361,-480.0,0.00035616,9]
[388156524,1759021844370,-1198.65,0.00035616,9]
[388156525,1759021844379,-480.0,0.00035616,9]
[388156526,1759021844388,-1361.54,0.00035616,9]
[388156527,1759021844397,-480.0,0.00035616,9]
[388156528,1759021844406,-480.0,0.00035616,9]
[388156529,1759021844415,-480.0,0.00035616,9]
[388156530,1759021844423,-6141.04,0.00035616,9]
[388156531,1759021844432,-1736.32,0.00035616,9]
[388156532,1759021844441,-483.77310395,0.00035616,9]
[388156533,1759021844450,-1178.21,0.00035616,9]
[388156534,1759021844458,-480.0,0.00035616,9]
[388156535,1759021844467,-304.00226194,0.00035616,9]
[388156536,1759021844476,-484.35,0.00035616,9]
[388156537,1759021844485,-480.0,0.00035616,9]
[388156538,1759021844497,-500.0,0.00035616,9]
[388156539,1759021844506,-500.0,0.00035616,9]
[388156540,1759021844514,-500.0,0.00035616,9]
[388156541,1759021844523,-500.0,0.00035616,9]
[388156542,1759021844532,-500.0,0.00035616,9]
[388156543,1759021844541,-500.0,0.00035616,9]
[388156544,1759021844550,-500.0,0.00035616,9]
[388156545,1759021844558,-919.56,0.00035616,9]
[388156546,1759021844567,-500.0,0.00035616,9]
[388156547,1759021844576,-900.77,0.00035616,9]
[388156548,1759021844585,-480.0,0.00035616,9]
[388156549,1759021844594,-480.0,0.00035616,9]
[388156550,1759021844603,-480.0,0.00035616,9]
[388156551,1759021844612,-655.84,0.00035616,9]
[388156552,1759021844621,-480.0,0.00035616,9]
[388156553,1759021844630,-480.0,0.00035616,9]
[388156554,1759021844639,-3678.99,0.00035616,9]
[388156555,1759021844648,-423.03353127,0.00035616,9]
[388156556,1759021844656,-480.0,0.00035616,9]
[388156557,1759021844665,-480.0,0.00035616,9]
[388156558,1759021844673,-480.0,0.00035616,9]
[388156559,1759021844682,-480.0,0.00035616,9]
[388156560,1759021844691,-480.0,0.00035616,9]
[388156561,1759021844699,-601.12140561,0.00035616,9]
[388156562,1759021844708,-1115.74,0.00035616,9]
[388156563,1759021844717,-480.0,0.00035616,9]
[388156564,1759021844725,-592.58,0.00035616,9]
[388156565,1759021844734,-480.0,0.00035616,9]
[388156566,1759021844743,-480.0,0.00035616,9]
[388156567,1759021844751,-480.0,0.00035616,9]
[388156568,1759021844760,-480.0,0.00035616,9]
[388156569,1759021844769,-617.49,0.00035616,9]
[388156570,1759021844778,-9154.61,0.00035616,9]
[388156571,1759021844787,-480.0,0.00035616,9]
[388156572,1759021844795,-868.79,0.00035616,9]
[388156573,1759021844804,-480.0,0.00035616,9]
[388156574,1759021844813,-480.0,0.00035616,9]
[388156575,1759021844822,-151.0,0.00035616,7]
[388156576,1759021844830,-225.166776,0.00035616,7]
[388156577,1759021844839,-480.0,0.00035616,9]
[388156578,1759021844848,-1335.18,0.00035616,9]
[388156579,1759021844857,-480.0,0.00035616,9]
[388156580,1759021844866,-855.8,0.00035616,9]
[388156581,1759021844875,-238.143104,0.00035616,7]
[388156582,1759021844884,-996.56,0.00035616,9]
[388156583,1759021844893,-480.0,0.00035616,9]
[388156584,1759021844902,-666.28,0.00035616,9]
[388156585,1759021844911,-480.0,0.00035616,9]
[388156586,1759021844920,-925.28,0.00035616,9]
[388156587,1759021844929,-480.0,0.00035616,9]
[388156588,1759021844938,-999.0,0.00035616,120]
[388156589,1759021844946,-480.0,0.00035616,9]
[388156590,1759021844955,-4225.86,0.00035616,9]
[388156591,1759021844964,-4303.31,0.00035616,9]
[388156592,1759021844973,-3201.47,0.00035616,9]
[388156593,1759021844982,-480.0,0.00035616,9]
[388156594,1759021844991,-480.0,0.00035616,9]
[388156595,1759021845001,-817.41,0.00035616,9]
[388156596,1759021845011,-1099.44,0.00035616,9]
[388156597,1759021845020,-480.0,0.00035616,9]
[388156598,1759021845029,-1141.81,0.00035616,9]
[388156599,1759021845039,-480.0,0.00035616,9]
[388156600,1759021845048,-480.0,0.00035616,9]
[388156601,1759021845058,-480.0,0.00035616,9]
[388156602,1759021845068,-480.0,0.00035616,7]
[388156603,1759021845077,-480.0,0.00035616,9]
[388156604,1759021845086,-1907.55,0.00035616,9]
[388156605,1759021845095,-480.0,0.00035616,9]
[388156606,1759021845103,-480.0,0.00035616,9]
[388156607,1759021845112,-480.0,0.00035616,9]
[388156608,1759021845121,-480.0,0.00035616,9]
[388156609,1759021845129,-480.0,0.00035616,9]
[388156610,1759021845139,-781.6,0.00035616,9]
[388156611,1759021845147,-353.91928169,0.00035616,9]
[388156612,1759021845156,-480.0,0.00035616,9]
[388156613,1759021845165,-480.0,0.00035616,9]
[388156614,1759021845174,-500.0,0.00035616,9]
[388156615,1759021845183,-585.84,0.00035616,9]
[388156616,1759021845192,-500.0,0.00035616,9]
[388156617,1759021845202,-500.0,0.00035616,9]
[388156618,1759021845211,-480.68196274,0.00035616,9]
[388156619,1759021845221,-500.0,0.00035616,9]
[388156620,1759021845230,-500.0,0.00035616,9]
[388156621,1759021845239,-500.0,0.00035616,9]
[388156622,1759021845248,-500.0,0.00035616,9]
[388156623,1759021845258,-226.31611396,0.00035616,9]
[388156624,1759021845267,-480.0,0.00035616,9]
[388156625,1759021845276,-1622.17,0.00035616,9]
[388156626,1759021845286,-927.37,0.00035616,9]
[388156627,1759021845296,-480.0,0.00035616,9]
[388156628,1759021845307,-480.0,0.00035616,9]
[388156629,1759021845316,-480.0,0.00035616,9]
[388156630,1759021845325,-315.47956739,0.00035616,9]
[388156631,1759021845334,-480.0,0.00035616,9]
[388156632,1759021845344,-10174.52,0.00035616,9]
[388156633,1759021845354,-480.0,0.00035616,9]
[388156634,1759021845364,-480.0,0.00035616,9]
[388156635,1759021845374,-480.0,0.00035616,9]
[388156636,1759021845384,-480.0,0.00035616,9]
[388156637,1759021845394,-888.36,0.00035616,9]
[388156638,1759021845404,-2813.87,0.00035616,9]
[388156639,1759021845414,-480.0,0.00035616,9]
[388156640,1759021845423,-1030.1,0.00035616,9]
[388156641,1759021845433,-994.34,0.00035616,9]
[388156642,1759021845443,-480.0,0.00035616,9]
[388156643,1759021845453,-480.0,0.00035616,9]
[388156644,1759021845462,-480.0,0.00035616,9]
[388156645,1759021845472,-2508.05,0.00035616,9]
[388156646,1759021845481,-664.94,0.00035616,9]
[388156647,1759021845492,-480.0,0.00035616,9]
[388156648,1759021845506,-480.0,0.00035616,9]
[388156649,1759021845516,-480.0,0.00035616,9]
[388156650,1759021845525,-1700.66,0.00035616,9]
[388156651,1759021845535,-2086.92,0.00035616,9]
[388156652,1759021845545,-1102.93,0.00035616,9]
[388156653,1759021845556,-1044.34,0.00035616,9]
[388156654,1759021845565,-480.0,0.00035616,9]
[388156655,1759021845579,-480.0,0.00035616,9]
[388156656,1759021845588,-2806.77,0.00035616,9]
[388156657,1759021845598,-524.4,0.00035616,9]
[388156658,1759021845608,-1080.86,0.00035616,9]
[388156659,1759021845617,-480.0,0.00035616,9]
[388156660,1759021845627,-480.0,0.00035616,9]
[388156661,1759021845637,-480.0,0.00035616,9]
[388156662,1759021845647,-480.0,0.00035616,9]
[388156663,1759021845657,-1154.18,0.00035616,9]
[388156664,1759021845668,-480.0,0.00035616,9]
[388156665,1759021845677,-866.78,0.00035616,9]
[388156666,1759021845686,-381.1955831,0.00035616,9]
[388156667,1759021845696,-912.3,0.00035616,9]
[388156668,1759021845706,-480.0,0.00035616,9]
[388156669,1759021845715,-1082.98,0.00035616,9]
[388156670,1759021845726,-480.0,0.00035616,9]
[388156671,1759021845735,-519.52,0.00035616,9]
[388156672,1759021845745,-2497.45,0.00035616,9]
[388156673,1759021845754,-480.0,0.00035616,9]
[388156674,1759021845764,-897.78,0.00035616,9]
[388156675,1759021845773,-480.0,0.00035616,7]
[388156676,1759021845782,-1335.16,0.00035616,9]
[388156677,1759021845792,-268.00684671,0.00035616,9]
[388156678,1759021845801,-480.0,0.00035616,9]
[388156679,1759021845811,-480.0,0.00035616,9]
[388156680,1759021845820,-480.0,0.00035616,9]
[388156681,1759021845829,-1774.65,0.00035616,9]
[388156682,1759021845839,-3243.57,0.00035616,9]
[388156683,1759021845848,-480.0,0.00035616,9]
[388156684,1759021845858,-480.0,0.00035616,9]
[388156685,1759021845867,-7454.79,0.00035616,3]
[388156686,1759021845877,-524.25136851,0.00035616,9]
[388156687,1759021845887,-618.6,0.00035616,9]
[388156688,1759021845898,-480.0,0.00035616,9]
[388156689,1759021845907,-480.0,0.00035616,9]
[388156690,1759021845917,-480.0,0.00035616,9]
[388156691,1759021845927,-240.36,0.00035616,9]
[388156692,1759021845936,-480.0,0.00035616,9]
[388156693,1759021845945,-480.0,0.00035616,9]
[388156694,1759021845955,-480.0,0.00035616,9]
[388156695,1759021845964,-773.77,0.00035616,9]
[388156696,1759021845973,-480.0,0.00035616,9]
[388156697,1759021845982,-1046.28,0.00035616,9]
[388156698,1759021845992,-480.0,0.00035616,9]
[388156700,1759021846156,-480.0,0.00035616,9]
[388156701,1759021846168,-480.0,0.00035616,9]
[388156702,1759021846178,-480.0,0.00035616,9]
[388156703,1759021846188,-480.0,0.00035616,9]
[388156704,1759021846198,-2745.57,0.00035616,9]
[388156705,1759021846208,-480.0,0.00035616,9]
[388156706,1759021846217,-189.3309625,0.00035616,3]
[388156707,1759021846227,-881.76,0.00035616,9]
[388156708,1759021846237,-480.0,0.00035616,9]
[388156709,1759021846246,-480.0,0.00035616,9]
[388156710,1759021846255,-480.0,0.00035616,9]
[388156711,1759021846264,-2935.14,0.00035616,9]
[388156712,1759021846274,-480.0,0.00035616,9]
[388156713,1759021846284,-480.0,0.00035616,9]
[388156714,1759021846293,-480.0,0.00035616,9]
[388156715,1759021846304,-1226.13,0.00035616,9]
[388156716,1759021846313,-961.28,0.00035616,9]
[388156717,1759021846324,-4547.28,0.00035616,9]
[388156718,1759021846333,-480.0,0.00035616,9]
[388156719,1759021846343,-4560.47,0.00035616,9]
[388156720,1759021846353,-919.9,0.00035616,9]
[388156721,1759021846362,-480.0,0.00035616,9]
[388156722,1759021846371,-480.0,0.00035616,9]
[388156723,1759021846382,-480.0,0.00035616,9]
[388156724,1759021846391,-747.84,0.00035616,9]
[388156725,1759021846400,-974.85,0.00035616,9]
[388156726,1759021846409,-591.23,0.00035616,9]
[388156727,1759021846420,-1794.77,0.00035616,9]
[388156728,1759021846429,-18356.1,0.00035616,9]
[388156729,1759021846440,-480.0,0.00035616,2]
[388156730,1759021846450,-480.0,0.00035616,9]
[388156731,1759021846460,-949.82,0.00035616,9]
[388156732,1759021846470,-5340.66,0.00035616,9]
[388156733,1759021846483,-1150.28,0.00035616,9]
[388156734,1759021846492,-913.35,0.00035616,9]
[388156735,1759021846502,-1070.25,0.00035616,9]
[388156736,1759021846512,-499.22389376,0.00035616,9]
[388156737,1759021846521,-1119.03,0.00035616,9]
[388156738,1759021846531,-480.0,0.00035616,9]
[388156739,1759021846540,-914.26,0.00035616,9]
[388156740,1759021846551,-470.39614918,0.00035616,9]
[388156741,1759021846562,-480.0,0.00035616,9]
[388156742,1759021846572,-480.0,0.00035616,9]
[388156743,1759021846582,-713.22,0.00035616,9]
[388156744,1759021846592,-480.0,0.00035616,9]
[388156745,1759021846601,-1227.11,0.00035616,9]
[388156746,1759021846611,-696.55,0.00035616,9]
[388156747,1759021846620,-2399.0,0.00035616,9]
[388156748,1759021846630,-1892.08,0.00035616,9]
[388156749,1759021846639,-265.19105122,0.00035616,9]
[388156750,1759021846648,-1120.26,0.00035616,9]
[388156751,1759021846658,-169.61391321,0.00035616,9]
[388156752,1759021846668,-750.18,0.00035616,9]
[388156753,1759021846678,-480.0,0.00035616,9]
[388156754,1759021846688,-1898.46,0.00035616,9]
[388156755,1759021846697,-480.0,0.00035616,9]
[388156756,1759021846706,-480.0,0.00035616,9]
[388156757,1759021846715,-2212.95,0.00035616,9]
[388156758,1759021846724,-1461.14,0.00035616,9]
[388156759,1759021846733,-2403.61,0.00035616,9]
[388156760,1759021846742,-480.0,0.00035616,9]
[388156761,1759021846751,-480.0,0.00035616,9]
[388156762,1759021846761,-356.38893449,0.00035616,9]
[388156763,1759021846770,-480.0,0.00035616,9]
[388156764,1759021846778,-480.0,0.00035616,9]
[388156765,1759021846787,-606.97,0.00035616,9]
[388156766,1759021846797,-854.17,0.00035616,9]
[388156767,1759021846808,-480.0,0.00035616,9]
[388156768,1759021846817,-972.78,0.00035616,9]
[388156769,1759021846827,-480.0,0.00035616,9]
[388156770,1759021846836,-480.0,0.00035616,9]
[388156771,1759021846845,-480.0,0.00035616,9]
[388156772,1759021846854,-480.0,0.00035616,9]
[388156773,1759021846863,-480.0,0.00035616,9]
[388156775,1759021846872,-728.93,0.00035616,9]
[388156776,1759021846881,-480.0,0.00035616,9]
[388156777,1759021846890,-480.0,0.00035616,9]
[388156778,1759021846900,-548.66,0.00035616,9]
[388156779,1759021846909,-687.81,0.00035616,9]
[388156780,1759021846919,-480.0,0.00035616,9]
[388156781,1759021846929,-480.0,0.00035616,9]
[388156782,1759021846938,-2145.74,0.00035616,9]
[388156783,1759021846947,-450.50308987,0.00035616,9]
[388156785,1759021846957,-480.0,0.00035616,9]
[388156786,1759021846966,-1024.17,0.00035616,9]
[388156787,1759021846975,-983.57,0.00035616,9]
[388156788,1759021846985,-480.0,0.00035616,9]
[388156789,1759021846994,-480.0,0.00035616,9]
[388156790,1759021847003,-480.0,0.00035616,9]
[388156791,1759021847012,-5765.62,0.00035616,9]
[388156792,1759021847022,-480.0,0.00035616,9]
[388156793,1759021847031,-9721.17,0.00035616,9]
[388156794,1759021847042,-301.040497,0.00035616,7]
[388156795,1759021847052,-301.040497,0.00035616,7]
[388156796,1759021847060,-9554.34,0.00035616,9]
[388156797,1759021847069,-301.040497,0.00035616,7]
[388156798,1759021847078,-301.040497,0.00035616,7]
[388156799,1759021847086,-301.040497,0.00035616,7]
[388156800,1759021847094,-301.040497,0.00035616,7]
[388156801,1759021847103,-301.040497,0.00035616,7]
[388156802,1759021847111,-301.040497,0.00035616,7]
[388156803,1759021847120,-781.83,0.00035616,9]
[388156804,1759021847129,-301.040497,0.00035616,7]
[388156805,1759021847140,-301.040497,0.00035616,7]
[388156806,1759021847148,-301.040497,0.00035616,7]
[388156807,1759021847156,-301.040497,0.00035616,7]
[388156808,1759021847165,-480.0,0.00035616,9]
[388156809,1759021847174,-301.040497,0.00035616,7]
[388156810,1759021847182,-555.48,0.00035616,9]
[388156811,1759021847190,-301.040497,0.00035616,7]
[388156812,1759021847199,-752.1,0.00035616,9]
[388156813,1759021847207,-301.040497,0.00035616,7]
[388156814,1759021847215,-301.040497,0.00035616,7]
[388156815,1759021847224,-480.0,0.00035616,9]
[388156816,1759021847233,-480.0,0.00035616,9]
[388156817,1759021847243,-480.0,0.00035616,9]
[388156818,1759021847252,-480.0,0.00035616,9]
[388156819,1759021847261,-480.0,0.00035616,9]
[388156820,1759021847271,-1863.14,0.00035616,9]
[388156821,1759021847280,-480.0,0.00035616,9]
[388156822,1759021847289,-597.76,0.00035616,9]
[388156823,1759021847299,-480.0,0.00035616,9]
[388156824,1759021847308,-1965.72,0.00035616,9]
[388156825,1759021847318,-480.0,0.00035616,9]
[388156826,1759021847327,-480.0,0.00035616,9]
[388156827,1759021847336,-2624.76,0.00035616,9]
[388156828,1759021847346,-4331.36,0.00035616,9]
[388156829,1759021847355,-1023.59,0.00035616,9]
[388156830,1759021847364,-480.0,0.00035616,9]
[388156831,1759021847374,-480.0,0.00035616,9]
[388156832,1759021847384,-633.54,0.00035616,9]
[388156833,1759021847393,-501.82,0.00035616,9]
[388156834,1759021847403,-480.0,0.00035616,9]
[388156835,1759021847412,-480.0,0.00035616,9]
[388156836,1759021847422,-901.94,0.00035616,9]
[388156837,1759021847431,-524.4,0.00035616,9]
[388156838,1759021847441,-2166.38,0.00035616,9]
[388156839,1759021847451,-981.11,0.00035616,9]
[388156840,1759021847460,-480.0,0.00035616,9]
[388156841,1759021847469,-480.0,0.00035616,9]
[388156842,1759021847480,-480.0,0.00035616,9]
[388156843,1759021847490,-480.0,0.00035616,9]
[388156844,1759021847503,-480.0,0.00035616,9]
[388156845,1759021847512,-5171.65,0.00035616,9]
[388156846,1759021847521,-480.0,0.00035616,9]
[388156847,1759021847531,-480.0,0.00035616,9]
[388156848,1759021847540,-1528.18,0.00035616,9]
[388156849,1759021847552,-480.0,0.00035616,9]
[388156850,1759021847561,-718.88,0.00035616,9]
[388156851,1759021847571,-480.0,0.00035616,9]
[388156852,1759021847580,-1004.49,0.00035616,9]
[388156853,1759021847589,-480.0,0.00035616,9]
[388156854,1759021847598,-480.0,0.00035616,9]
[388156855,1759021847607,-509.09,0.00035616,9]
[388156856,1759021847618,-151.0,0.00035616,7]
[388156857,1759021847627,-151.0,0.00035616,7]
[388156858,1759021847636,-151.0,0.00035616,7]
[388156859,1759021847646,-480.0,0.00035616,9]
[388156860,1759021847657,-1397.26,0.00035616,9]
[388156861,1759021847666,-480.0,0.00035616,9]
[388156862,1759021847676,-480.0,0.00035616,9]
[388156863,1759021847686,-611.7,0.00035616,9]
[388156864,1759021847696,-3041.11,0.00035616,9]
[388156865,1759021847706,-480.0,0.00035616,9]
[388156866,1759021847715,-4827.31,0.00035616,9]
[388156867,1759021847725,-1027.43,0.00035616,9]
[388156868,1759021847734,-480.0,0.00035616,9]
[388156869,1759021847743,-480.0,0.00035616,9]
[388156870,1759021847752,-3639.33,0.00035616,9]
[388156871,1759021847761,-480.0,0.00035616,9]
[388156872,1759021847770,-480.0,0.00035616,9]
[388156873,1759021847780,-480.0,0.00035616,9]
[388156874,1759021847789,-593.59,0.00035616,9]
[388156875,1759021847799,-455.38341531,0.00035616,9]
[388156876,1759021847809,-552.32,0.00035616,9]
[388156877,1759021847819,-480.0,0.00035616,9]
[388156878,1759021847829,-692.6,0.00035616,9]
[388156879,1759021847839,-2966.62,0.00035616,9]
[388156880,1759021847849,-480.0,0.00035616,9]
[388156881,1759021847859,-3188.71,0.00035616,9]
[388156882,1759021847868,-480.0,0.00035616,9]
[388156883,1759021847877,-480.0,0.00035616,9]
[388156884,1759021847887,-191.361849,0.00035616,7]
[388156885,1759021847896,-865.03,0.00035616,9]
[388156886,1759021847906,-151.0,0.00035616,7]
[388156887,1759021847915,-480.0,0.00035616,9]
[388156888,1759021847924,-151.0,0.00035616,7]
[388156889,1759021847933,-151.0,0.00035657,30]
[388156890,1759021847942,-500.0,0.00035673,5]
[388156891,1759021847952,-400.0,0.00035673,5]
[388156892,1759021847962,-150.0,0.00035673,5]
[388156893,1759021847971,-500.0,0.00035673,5]
[388156894,1759021847981,-500.0,0.00035673,5]
[388156895,1759021847990,-500.0,0.00035673,5]
[388156896,1759021847999,-500.0,0.00035673,5]
[388156897,1759021848009,-233.76631357,0.00035676,2]
[388156898,1759021848018,-151.0,0.00035768,2]
[388156899,1759021848028,-151.0,0.00035768,2]
[388156900,1759021848038,-151.0,0.00035768,2]
[388156901,1759021848047,-500.0,0.00035768,2]
[388156902,1759021848057,-500.0,0.00035768,2]
[388156903,1759021848067,-151.0,0.00035768,2]
[388156904,1759021848076,-151.0,0.00035768,2]
[388156905,1759021848086,-151.0,0.00035768,2]
[388156906,1759021848095,-295.69141765,0.00035768,2]
[388156907,1759021848104,-151.0,0.00035768,2]
[388156908,1759021848113,-151.0,0.00035768,2]
[388156909,1759021848123,-151.0,0.00035768,2]